bitfinex-derivatives/quotes_BNBF0:USTF0_20250330
["timestamp","ask_amount","ask_price","bid_price","bid_amount"]
[1743366764618,1.316,603.83,602.94,0.33170796]
[1743366764619,1.53999447,603.8,602.94,0.33170796]
[1743366764819,1.316,603.83,602.94,0.33170796]
[1743366764820,1.53999447,603.79,602.94,0.33170796]
[1743366765026,1.53989415,603.78,602.94,0.33170796]
[1743366765217,1.54032411,603.77,602.94,0.33170796]
[1743366765420,1.28272,603.79,602.94,0.33170796]
[1743366765625,2.88472,603.76,602.94,0.33170796]
[1743366766226,1.28272,603.75,602.94,0.33170796]
[1743366766626,1.582,603.74,602.94,0.33170796]
[1743366766927,2.86472,603.74,602.94,0.33170796]
[1743366767627,1.28272,603.73,602.94,0.33170796]
[1743366768225,1.28272,603.72,602.94,0.33170796]
[1743366768826,1.28272,603.71,602.94,0.33170796]
[1743366769729,1.28272,603.7,602.94,0.33170796]
[1743366770531,1.582,603.74,602.94,0.33170796]
[1743366771435,1.28254141,603.73,602.94,0.33170796]
[1743366771629,1.53953429,603.72,602.94,0.33170796]
[1743366771835,1.53953429,603.71,602.94,0.33170796]
[1743366772031,1.53953429,603.7,602.94,0.33170796]
[1743366772335,1.53953429,603.69,602.94,0.33170796]
[1743366772526,1.28254141,603.7,602.94,0.33170796]
[1743366772726,1.53906754,603.69,602.94,0.33170796]
[1743366772927,1.28254141,603.7,602.94,0.33170796]
[1743366773234,1.53907024,603.69,602.94,0.33170796]
[1743366773434,1.28254141,603.69,602.94,0.33170796]
[1743366774035,1.28254141,603.68,602.94,0.33170796]
[1743366774635,1.28254141,603.67,602.94,0.33170796]
[1743366775137,1.28254141,603.66,602.94,0.33170796]
[1743366775637,1.53824153,603.72,602.94,0.33170796]
[1743366776137,1.28131108,603.71,602.94,0.33170796]
[1743366776736,1.28131108,603.7,602.94,0.33170796]
[1743366777639,1.28131108,603.69,602.94,0.33170796]
[1743366777934,1.28131108,603.68,602.94,0.33170796]
[1743366778931,1.582,603.74,602.94,0.33170796]
[1743366780139,1.28097176,603.73,602.94,0.33170796]
[1743366780640,0.28846273,603.72,602.94,0.33170796]
[1743366780837,1.5373475,603.71,602.94,0.33170796]
[1743366781042,1.5373475,603.7,602.94,0.33170796]
[1743366781339,1.5373475,603.71,602.94,0.33170796]
[1743366781642,1.28097176,603.69,602.94,0.33170796]
[1743366781837,2.81831926,603.69,602.94,0.33170796]
[1743366782038,1.28097176,603.69,602.94,0.33170796]
[1743366782240,1.28097176,603.68,602.94,0.33170796]
[1743366783040,1.28097176,603.67,602.94,0.33170796]
[1743366783239,1.5373475,603.66,602.94,0.33170796]
[1743366783640,1.28097176,603.65,602.94,0.33170796]
[1743366784638,0.28855362,603.66,602.94,0.33170796]
[1743366784639,1.28097176,603.64,602.94,0.33170796]
[1743366785047,1.28097176,603.63,602.94,0.33170796]
[1743366785648,2.51797176,603.62,602.94,0.33170796]
[1743366786346,1.237,603.62,602.94,0.33170796]
[1743366788147,1.364,603.61,602.94,0.33170796]
[1743366818272,1.237,603.62,602.94,0.33170796]
[1743366818680,1.613,603.61,602.94,0.33170796]
[1743366820780,1.566,603.6,602.94,0.33170796]
[1743366829490,1.104,603.59,602.94,0.33170796]
[1743366844197,1.101,603.58,602.94,0.33170796]
[1743366851604,2.306,603.58,602.94,0.33170796]
[1743366864909,3.494,603.58,602.94,0.33170796]
[1743366882627,1.28467605,603.57,602.94,0.33170796]
[1743366883234,1.188,603.58,602.94,0.33170796]
[1743366885838,2.372,603.58,602.94,0.33170796]
[1743366886735,3.694,603.58,602.94,0.33170796]
[1743366957404,3.694,603.58,603.05,2.53668648]
[1743366958805,3.694,603.58,602.94,0.33170796]
[1743367015750,3.694,603.58,602.96,2.53668648]
[1743367015954,3.694,603.58,602.97,0.33169146]
[1743367018759,3.694,603.58,603.0,2.53668648]
[1743367018960,3.694,603.58,603.01,0.33166945]
[1743367019762,3.694,603.58,603.04,2.53668648]
[1743367020059,3.694,603.58,603.05,0.33164745]
[1743367044482,3.694,603.58,603.11,2.53668648]
[1743367046188,3.694,603.58,603.1,2.53668648]
[1743367047890,3.694,603.58,603.06,2.82506077]
[1743367049391,3.694,603.58,603.07,0.33163646]
[1743367050692,3.694,603.58,603.13,2.53668648]
[1743367050891,3.694,603.58,603.14,0.33159797]
[1743367052593,3.694,603.58,603.16,2.53668648]
[1743367054387,3.694,603.58,603.21,2.53668648]
[1743367055295,3.694,603.58,603.24,2.53668648]
[1743367056693,3.694,603.58,603.22,2.53668648]
[1743367057795,3.694,603.58,603.25,2.53668648]
[1743367057995,1.322,603.58,603.25,2.53668648]
[1743367058295,0.28833845,604.12,603.25,2.53668648]
[1743367058495,1.54226095,604.11,603.25,2.53668648]
[1743367058696,1.32471067,604.32,603.25,2.53668648]
[1743367058697,1.54226095,604.1,603.25,2.53668648]
[1743367058897,7.09672688,604.27,603.25,2.53668648]
[1743367059195,11.1002556,604.26,603.25,2.53668648]
[1743367059396,7.09934705,604.25,603.25,2.53668648]
[1743367059696,7.09934705,604.24,603.25,2.53668648]
[1743367059893,0.28828351,604.25,603.25,2.53668648]
[1743367059894,7.09934705,604.23,603.25,2.53668648]
[1743367060094,7.09934705,604.22,603.15,0.28828351]
[1743367060290,7.09934705,604.21,603.15,0.28828351]
[1743367060495,7.09934705,604.2,603.15,0.28828351]
[1743367060689,5.60735074,604.19,603.15,0.28828351]
[1743367060893,5.60735074,604.18,603.15,0.28828351]
[1743367061090,2.47572594,604.17,603.15,0.28828351]
[1743367061296,1.54322825,604.16,603.15,0.28828351]
[1743367061496,1.54322825,604.15,603.14,0.33159797]
[1743367061797,4.94489115,604.14,603.14,0.33159797]
[1743367061999,7.10126034,604.13,603.14,0.33159797]
[1743367062195,7.10126034,604.12,603.14,0.33159797]
[1743367062397,7.10126034,604.11,603.14,0.33159797]
[1743367062596,7.10126034,604.1,603.14,0.33159797]
[1743367062797,5.60735074,604.09,603.15,0.28833128]
[1743367062998,5.60735074,604.08,603.15,0.28833128]
[1743367063193,5.61059178,604.07,603.15,0.28833128]
[1743367063396,4.94811015,604.06,603.15,0.28833128]
[1743367063592,4.94811015,604.05,603.15,0.28833128]
[1743367063892,4.94811015,604.04,603.15,0.28833128]
[1743367064198,4.94841354,604.03,603.15,0.28833128]
[1743367064496,4.00352872,604.05,603.14,0.33159797]
[1743367064497,4.94841354,604.02,603.14,0.33159797]
[1743367064696,4.01591585,604.01,603.14,0.61992806]
[1743367064892,4.94993848,604.0,603.14,0.61992806]
[1743367065096,4.94993848,603.99,603.14,0.61992806]
[1743367065297,4.94993848,603.98,603.14,0.61992806]
[1743367065497,1.54461259,603.97,603.14,0.61992806]
[1743367065692,1.54461259,603.96,603.14,0.61992806]
[1743367065896,1.54461259,603.95,603.14,0.61992806]
[1743367066094,1.54461259,603.94,603.14,0.61992806]
[1743367066297,1.54461259,603.93,603.14,0.61992806]
[1743367066595,1.54461259,603.92,603.14,0.61992806]
[1743367066797,1.54461259,603.91,603.14,0.61992806]
[1743367067000,1.54461259,603.9,603.14,0.61992806]
[1743367067299,1.54461259,603.89,603.14,0.61992806]
[1743367067499,1.54461259,603.88,603.14,0.33159797]
[1743367067800,3.34117246,603.89,603.14,0.33159797]
[1743367067992,1.54415236,603.88,603.14,0.33159797]
[1743367068198,3.34117246,603.89,603.14,0.33159797]
[1743367068497,2.82902899,603.88,603.14,0.33159797]
[1743367068700,1.28506633,603.88,603.14,0.33159797]
[1743367068895,0.28835159,603.96,603.14,0.33159797]
[1743367068896,1.28506633,603.87,603.14,0.33159797]
[1743367069896,1.28506633,603.86,603.14,0.33159797]
[1743367070501,1.54378203,603.93,603.14,0.33159797]
[1743367070702,1.54378203,603.92,603.14,0.33159797]
[1743367070900,1.54378203,603.91,603.14,0.33159797]
[1743367071100,1.54349207,603.93,603.14,0.33159797]
[1743367071400,2.05744168,603.94,603.14,0.33159797]
[1743367071601,1.28576128,603.91,603.14,0.33159797]
[1743367071801,1.54345407,603.9,603.14,0.33159797]
[1743367071997,1.28576128,603.91,603.14,0.33159797]
[1743367072203,1.28576128,603.89,603.14,0.33159797]
[1743367072396,2.82905092,603.89,603.14,0.33159797]
[1743367072597,1.28576128,603.89,603.14,0.33159797]
[1743367072803,1.28576128,603.88,603.14,0.33159797]
[1743367073698,2.82905092,603.87,603.14,0.33159797]
[1743367073901,1.54328964,603.86,603.14,0.33159797]
[1743367074100,1.54328964,603.85,603.14,0.33159797]
[1743367074502,1.28576128,603.86,603.14,0.33159797]
[1743367074699,1.28576128,603.84,603.14,0.33159797]
[1743367075507,1.28576128,603.83,603.14,0.33159797]
[1743367076101,1.28576128,603.82,603.14,0.33159797]
[1743367077004,1.28576128,603.81,603.14,0.33159797]
[1743367077402,1.28576128,603.8,603.14,0.33159797]
[1743367077998,1.28576128,603.79,603.14,0.33159797]
[1743367078599,1.28576128,603.78,603.14,0.33159797]
[1743367079498,1.42,603.82,603.14,0.33159797]
[1743367079900,1.28422029,603.81,603.14,0.33159797]
[1743367081206,1.28422029,603.8,603.14,0.33159797]
[1743367081708,1.28422029,603.79,603.14,0.33159797]
[1743367082706,1.42,603.82,603.14,0.33159797]
[1743367102214,2.62,603.82,603.14,0.33159797]
[1743367117534,3.909,603.82,603.14,0.33159797]
[1743367119928,3.909,603.82,603.15,2.53668648]
[1743367121634,3.909,603.82,603.17,2.53668648]
[1743367122833,3.909,603.82,603.24,2.53668648]
[1743367126743,3.909,603.82,603.25,2.53668648]
[1743367130243,3.909,603.82,603.19,2.53668648]
[1743367132939,3.909,603.82,603.2,2.53668648]
[1743367135647,3.909,603.82,603.19,2.53668648]
[1743367137746,3.909,603.82,603.2,2.53668648]
[1743367139550,3.909,603.82,603.23,2.53668648]
[1743367139942,3.89923476,603.82,603.23,2.53668648]
[1743367140243,2.489,603.82,603.23,2.53668648]
[1743367141347,2.489,603.82,603.27,2.53668648]
[1743367142652,2.489,603.82,603.2,0.2883062]
[1743367142653,2.489,603.82,603.24,2.53668648]
[1743367143651,2.489,603.82,603.23,0.28830142]
[1743367145653,2.489,603.82,603.2,2.53668648]
[1743367146353,2.489,603.82,603.17,2.53668648]
[1743367146951,2.489,603.82,603.18,0.28831337]
[1743367148652,2.489,603.82,603.17,2.53668648]
[1743367149657,2.489,603.82,603.14,0.33159797]
[1743367149849,2.489,603.82,603.18,0.28831814]
[1743367151556,2.489,603.82,603.14,0.33159797]
[1743367152158,2.489,603.82,603.17,2.53668648]
[1743367152758,2.489,603.82,603.18,0.28833248]
[1743367154559,2.489,603.82,603.16,2.53668648]
[1743367154753,2.489,603.82,603.18,0.28833367]
[1743367157559,2.489,603.82,603.17,2.53668648]
[1743367157760,2.489,603.82,603.14,0.33159797]
[1743367158856,2.489,603.82,603.15,0.2883265]
[1743367160563,2.489,603.82,603.14,2.86828445]
[1743367161666,2.489,603.82,603.18,2.53668648]
[1743367162864,2.489,603.82,603.17,2.53668648]
[1743367167168,2.489,603.82,603.19,2.53668648]
[1743367169169,2.489,603.82,603.21,2.53668648]
[1743367170375,2.489,603.82,603.22,2.53668648]
[1743367172175,2.489,603.82,603.17,0.28832292]
[1743367172573,2.489,603.82,603.14,0.33159797]
[1743367173971,2.489,603.82,603.15,0.28836593]
[1743367175671,2.489,603.82,603.14,0.33159797]
[1743367176977,2.489,603.82,603.15,0.28836593]
[1743367178578,2.489,603.82,603.14,0.33159797]
[1743367179078,2.489,603.82,603.15,0.28834084]
[1743367182283,2.489,603.82,603.16,2.53668648]
[1743367183385,2.489,603.82,603.21,2.53668648]
[1743367184885,2.489,603.82,603.19,2.53668648]
[1743367186691,2.489,603.82,603.2,2.53668648]
[1743367186887,1.28781728,603.81,603.2,2.53668648]
[1743367188392,1.422,603.9,603.14,0.33159797]
[1743367188588,1.54568468,603.89,603.14,0.33159797]
[1743367188794,1.54568468,603.88,603.14,0.33159797]
[1743367188993,1.28749016,603.88,603.14,0.6200344]
[1743367189393,1.28749016,603.87,603.14,0.6200344]
[1743367189594,1.54550458,603.86,603.14,0.6200344]
[1743367189794,1.54550458,603.85,603.14,0.6200344]
[1743367190095,2.83299474,603.84,603.14,0.6200344]
[1743367190396,1.28749016,603.84,603.14,0.6200344]
[1743367190693,3.03449016,603.83,603.14,0.33159797]
[1743367191294,1.28749016,603.82,603.14,0.33159797]
[1743367191893,1.28749016,603.82,603.14,0.62004755]
[1743367192296,1.28749016,603.81,603.14,0.62004755]
[1743367192595,1.28749016,603.8,603.14,0.62004755]
[1743367193296,1.28749016,603.79,603.14,0.62004755]
[1743367193797,1.28749016,603.79,603.14,0.33159797]
[1743367193991,1.28749016,603.78,603.14,0.33159797]
[1743367194591,1.732,603.77,603.14,0.33159797]
[1743367194795,3.01949016,603.77,603.14,0.33159797]
[1743367195493,1.28749016,603.76,603.14,0.33159797]
[1743367196497,1.732,603.77,603.14,0.33159797]
[1743367204405,1.732,603.77,603.02,0.28841731]
[1743367204900,1.54319094,603.76,603.02,0.28841731]
[1743367205101,1.54319094,603.75,603.02,0.28841731]
[1743367205302,1.28552242,603.76,603.02,0.28841731]
[1743367205507,1.54289076,603.75,603.02,0.28841731]
[1743367205707,1.54287036,603.74,602.84,2.53668648]
[1743367205908,1.28552242,603.74,602.55,2.53668648]
[1743367206104,1.28552242,603.74,602.57,0.33191164]
[1743367206407,1.28552242,603.73,602.57,0.33191164]
[1743367206807,1.28552242,603.72,602.58,0.28847708]
[1743367207109,1.28552242,603.72,602.6,0.33189512]
[1743367207309,1.28552242,603.71,602.6,0.33189512]
[1743367208405,1.28552242,603.7,602.6,0.33189512]
[1743367209204,1.54166435,603.77,602.6,0.33189512]
[1743367209410,1.54166435,603.81,602.6,0.33189512]
[1743367209710,1.54166435,603.8,602.6,0.33189512]
[1743367209911,1.54166435,603.79,602.6,0.33189512]
[1743367210103,1.54166435,603.78,602.6,0.33189512]
[1743367210310,1.208,603.78,602.6,0.33189512]
[1743367210606,2.74868102,603.78,602.6,0.33189512]
[1743367210803,1.208,603.78,602.6,0.33189512]
[1743367211008,1.28375912,603.77,602.6,0.33189512]
[1743367211209,2.82444014,603.77,602.6,0.33189512]
[1743367211512,2.71268102,603.76,602.6,0.33189512]
[1743367211905,2.45575912,603.76,602.6,0.33189512]
[1743367212610,1.28375912,603.75,602.6,0.33189512]
[1743367213211,1.28375912,603.74,602.6,0.33189512]
[1743367213809,1.28375912,603.73,602.6,0.33189512]
[1743367214807,1.28375912,603.72,602.6,0.33189512]
[1743367215514,1.28375912,603.75,602.66,2.53668648]
[1743367215712,1.28375912,603.75,602.67,0.33185657]
[1743367216111,1.28375912,603.74,602.67,0.33185657]
[1743367216913,1.28375912,603.75,602.67,0.33185657]
[1743367217114,1.28375912,603.75,602.69,2.53668648]
[1743367217315,1.28375912,603.75,602.7,0.33184005]
[1743367219210,1.28375912,603.75,602.72,2.53668648]
[1743367219716,1.46046991,603.76,602.72,2.53668648]
[1743367219911,1.46046991,603.76,602.73,0.33182353]
[1743367220311,1.804,603.75,602.73,0.33182353]
[1743367223116,1.804,603.75,602.73,0.33182353]
[1743367224313,1.804,603.75,602.77,2.53668648]
[1743367225116,1.804,603.75,602.78,0.33179601]
[1743367225520,1.804,603.75,602.78,2.86848249]
[1743367226218,1.804,603.75,602.79,2.53668648]
[1743367226422,1.804,603.75,602.8,0.331785]
[1743367226923,1.804,603.75,602.8,2.86847148]
[1743367228423,1.804,603.75,602.8,0.331785]
[1743367228623,3.08581229,603.75,602.8,0.331785]
[1743367229826,3.08581229,603.75,602.8,2.86847148]
[1743367230128,1.28181229,603.74,602.8,2.86847148]
[1743367231628,1.28181229,603.74,602.82,2.53668648]
[1743367231830,1.804,603.75,602.82,2.86846047]
[1743367232429,1.804,603.75,602.82,0.33177399]
[1743367233129,1.28211237,603.74,602.82,0.33177399]
[1743367233730,1.804,603.75,602.82,0.33177399]
[1743367235031,1.28230306,603.74,602.82,0.33177399]
[1743367235429,1.28230306,603.74,602.84,2.53668648]
[1743367235833,1.804,603.75,602.84,2.53668648]
[1743367237128,3.08630306,603.75,602.84,2.53668648]
[1743367238133,1.091,603.74,602.84,2.53668648]
[1743367238335,2.37330306,603.74,602.88,2.53668648]
[1743367239434,2.37330306,603.74,602.89,2.53668648]
[1743367239834,1.28230306,603.73,602.89,2.53668648]
[1743367240732,1.091,603.74,602.9,2.53668648]
[1743367242031,1.2839762,603.73,602.9,2.53668648]
[1743367242232,1.2839762,603.73,602.95,2.53668648]
[1743367242536,1.2839762,603.72,602.95,2.53668648]
[1743367243332,2.63242174,603.74,602.95,2.53668648]
[1743367243333,1.2839762,603.71,602.95,2.53668648]
[1743367243638,1.2839762,603.71,602.92,2.53668648]
[1743367243830,1.2839762,603.7,602.92,2.53668648]
[1743367244238,1.2839762,603.69,602.92,2.53668648]
[1743367245236,1.2839762,603.68,602.93,2.53668648]
[1743367246244,1.54264961,603.67,602.93,2.53668648]
[1743367246436,1.54264961,603.66,602.93,2.53668648]
[1743367246640,1.54264961,603.65,602.93,2.53668648]
[1743367246841,1.54264961,603.64,602.93,2.53668648]
[1743367247038,3.34123255,603.65,602.93,2.53668648]
[1743367247242,1.28508944,603.63,602.93,2.53668648]
[1743367247638,1.28508944,603.62,602.85,2.53668648]
[1743367248346,1.28508944,603.61,602.85,2.53668648]
[1743367248942,1.28508944,603.61,602.86,0.28846752]
[1743367249240,1.28508944,603.6,602.86,0.28846752]
[1743367250041,1.28508944,603.59,602.86,0.28846752]
[1743367250748,1.54301688,603.71,602.83,2.53668648]
[1743367250949,1.54301688,603.7,602.86,0.28846991]
[1743367251149,1.54301688,603.69,602.86,0.28846991]
[1743367251342,2.82835315,603.68,602.86,0.28846991]
[1743367251544,1.54301688,603.67,602.86,0.28846991]
[1743367251755,1.54301688,603.66,602.83,2.53668648]
[1743367251949,1.54301688,603.65,602.83,2.53668648]
[1743367252150,1.54301688,603.64,602.83,2.53668648]
[1743367252350,1.54301688,603.63,602.83,2.53668648]
[1743367252547,1.54301688,603.62,602.83,2.53668648]
[1743367252855,1.54301688,603.61,602.83,2.53668648]
[1743367253151,1.54301688,603.6,602.83,2.53668648]
[1743367253351,1.54299252,603.59,602.83,2.53668648]
[1743367253553,1.28533627,603.61,602.83,2.53668648]
[1743367253855,1.28533627,603.58,602.82,0.33177399]
[1743367254853,1.28533627,603.57,602.82,0.33177399]
[1743367255555,1.28533627,603.56,602.82,0.33177399]
[1743367256355,1.28533627,603.55,602.82,0.33177399]
[1743367256854,1.903,603.54,602.82,0.33177399]
[1743367257050,3.18833627,603.54,602.82,0.33177399]
[1743367257456,1.28533627,603.53,602.82,0.33177399]
[1743367257954,1.903,603.54,602.82,0.33177399]
[1743367257955,1.28533627,603.52,602.82,0.33177399]
[1743367258553,1.28533627,603.51,602.82,0.33177399]
[1743367259052,1.903,603.54,602.82,0.33177399]
[1743367259658,1.28523174,603.53,602.82,0.33177399]
[1743367260751,6.5584441,603.52,602.45,2.53668648]
[1743367260956,1.65047631,603.48,602.45,2.53668648]
[1743367261152,1.65047631,603.48,602.36,0.28865894]
[1743367261153,7.0967039,603.47,602.39,2.53668648]
[1743367261456,1.65341075,603.43,602.39,2.53668648]
[1743367261657,4.94182318,603.42,602.39,2.53668648]
[1743367261857,7.59427323,603.41,602.39,2.53668648]
[1743367262055,7.0967039,603.4,602.39,2.53668648]
[1743367262256,7.0967039,603.39,602.39,2.53668648]
[1743367262455,7.0967039,603.38,602.39,2.53668648]
[1743367262652,7.0967039,603.37,601.57,2.53668648]
[1743367262852,7.0967039,603.36,601.59,0.33245233]
[1743367263056,7.0967039,603.35,602.29,0.28870085]
[1743367263358,4.29332255,603.37,601.59,0.33245233]
[1743367263359,7.0967039,603.34,601.59,0.33245233]
[1743367263559,7.0967039,603.33,601.59,0.33245233]
[1743367263752,7.0967039,603.32,601.59,0.33245233]
[1743367263953,3.95869936,603.31,601.59,0.33245233]
[1743367264159,6.41407893,603.3,601.59,0.33245233]
[1743367264355,0.66355005,603.32,601.59,0.33245233]
[1743367264356,7.07762898,603.29,601.59,0.33245233]
[1743367264556,7.07762898,603.28,601.59,0.33245233]
[1743367264755,7.07762898,603.27,601.6,0.28882185]
[1743367264955,4.0046217,603.29,601.6,0.28882185]
[1743367264956,7.07762898,603.26,601.62,0.33243575]
[1743367265156,7.07762898,603.25,601.62,0.33243575]
[1743367265356,0.28870085,603.37,601.62,0.33243575]
[1743367265357,7.07762898,603.24,601.62,0.33243575]
[1743367265654,1.64225025,603.03,601.62,0.33243575]
[1743367265853,1.64225025,602.94,601.62,0.33243575]
[1743367266057,3.97735947,602.93,601.62,0.33243575]
[1743367266257,1.63747705,602.88,601.62,0.33243575]
[1743367266454,3.97735947,602.87,601.62,0.33243575]
[1743367266657,6.38312767,602.86,601.62,0.33243575]
[1743367266855,7.04716058,602.85,601.62,0.33243575]
[1743367267059,7.04716058,602.84,601.62,0.33243575]
[1743367267359,7.04716058,602.83,601.62,0.33243575]
[1743367267559,7.04716058,602.82,601.62,0.33243575]
[1743367267761,7.04716058,602.81,601.62,0.33243575]
[1743367267961,1.65341075,602.78,601.62,0.33243575]
[1743367268164,3.97735947,602.77,601.62,0.33243575]
[1743367268355,7.04716058,602.76,601.62,0.33243575]
[1743367268560,1.65341075,602.73,601.62,0.33243575]
[1743367268761,3.97735947,602.72,601.62,0.33243575]
[1743367268961,4.90265493,602.71,601.62,0.33243575]
[1743367269163,5.56668784,602.7,601.62,0.33243575]
[1743367269477,1.63747705,602.67,601.62,0.33243575]
[1743367269658,7.20416489,602.66,601.62,0.33243575]
[1743367269858,1.62540459,602.64,601.62,0.33243575]
[1743367270065,1.65341075,602.58,601.62,0.33243575]
[1743367270266,4.61193573,602.57,601.62,0.33243575]
[1743367270458,1.65341075,602.58,601.62,0.33243575]
[1743367270459,5.53037606,602.56,601.62,0.33243575]
[1743367270664,5.53037606,602.55,601.62,0.33243575]
[1743367270865,1.65341075,602.51,601.62,0.33243575]
[1743367271065,4.61193573,602.5,601.62,0.33243575]
[1743367271366,4.61193573,602.49,601.62,0.33243575]
[1743367271567,4.86358006,602.48,601.62,0.33243575]
[1743367271869,1.65341075,602.44,601.62,0.33243575]
[1743367272068,5.51516705,602.43,601.62,0.33243575]
[1743367272366,1.62036402,602.38,601.62,0.33243575]
[1743367272563,5.51516705,602.37,601.62,0.33243575]
[1743367272770,3.9349329,602.36,601.62,0.33243575]
[1743367272961,3.9349329,602.35,601.62,0.33243575]
[1743367273166,3.9349329,602.34,601.62,0.33243575]
[1743367273368,3.9349329,602.33,601.62,0.33243575]
[1743367273563,3.9349329,602.32,601.62,0.33243575]
[1743367273763,5.51206805,602.31,599.8,2.53668648]
[1743367273969,1.62036402,602.19,599.92,0.33337778]
[1743367274169,1.62036402,602.12,601.28,0.28916143]
[1743367274369,4.59943606,602.11,599.92,0.33337778]
[1743367274568,5.51206805,602.1,599.92,0.33337778]
[1743367274771,5.51206805,602.09,601.21,0.28940792]
[1743367274964,1.65341075,602.05,601.21,0.28940792]
[1743367275166,3.9349329,602.04,599.92,0.33337778]
[1743367275366,3.9349329,602.03,599.92,0.33337778]
[1743367275566,3.9349329,602.02,599.92,0.33337778]
[1743367275762,1.51343573,602.01,599.92,0.33337778]
[1743367275965,4.0046217,602.03,599.93,0.2895247]
[1743367276169,1.48607642,602.02,600.03,0.33331666]
[1743367276469,4.0046217,602.03,600.03,0.33331666]
[1743367276470,3.34171072,602.0,600.03,0.33331666]
[1743367277072,1.28523174,601.99,600.03,0.33331666]
[1743367277968,1.28523174,601.98,600.03,0.33331666]
[1743367278372,2.05647898,602.25,600.03,0.33331666]
[1743367279168,1.231633,602.24,600.03,0.33331666]
[1743367279974,1.231633,602.23,600.03,0.33331666]
[1743367280774,1.231633,602.4,600.03,0.33331666]
[1743367281475,1.231633,602.39,600.03,0.33331666]
[1743367281873,1.52110833,602.39,600.03,0.33331666]
[1743367282472,1.231633,602.38,600.03,0.33331666]
[1743367283573,1.231633,602.37,600.03,0.33331666]
[1743367284775,1.231633,602.36,600.03,0.33331666]
[1743367285775,1.231633,602.41,600.03,0.33331666]
[1743367286280,0.28945727,602.42,600.03,0.33331666]
[1743367289579,1.231633,602.6,600.03,0.33331666]
[1743367289978,1.48041609,602.67,600.03,0.33331666]
[1743367289979,1.231633,602.67,600.03,0.33331666]
[1743367290176,2.71204909,602.67,600.03,0.33331666]
[1743367290779,1.231633,602.66,600.03,0.33331666]
[1743367290975,1.52095069,602.66,600.03,0.33331666]
[1743367291176,0.30510938,602.65,600.03,0.33331666]
[1743367294186,0.28931769,602.66,600.03,0.33331666]
[1743367295579,1.231633,602.71,600.03,0.33331666]
[1743367295780,1.186,602.72,600.03,0.33331666]
[1743367296787,1.186,602.72,600.09,2.53668648]
[1743367296981,0.28919147,602.71,600.22,0.33321115]
[1743367298184,0.28919147,602.71,600.22,2.86989763]
[1743367298582,1.231633,602.86,600.22,2.86989763]
[1743367298786,0.30509515,602.85,600.22,2.86989763]
[1743367298986,0.59424097,602.85,600.22,2.86989763]
[1743367299185,1.53672815,602.84,600.22,2.86989763]
[1743367299386,0.30509515,602.83,600.22,2.86989763]
[1743367299583,0.30509515,602.83,600.22,0.33321115]
[1743367299783,1.98909515,602.83,600.22,0.33321115]
[1743367299989,0.30509515,602.82,600.22,0.33321115]
[1743367300287,1.53672815,602.82,600.22,0.33321115]
[1743367300487,1.231633,602.82,600.22,0.33321115]
[1743367300891,2.492633,602.82,600.22,0.33321115]
[1743367301087,1.231633,602.81,600.22,0.33321115]
[1743367301691,1.231633,602.8,600.22,0.33321115]
[1743367301888,1.231633,602.8,600.23,2.53668648]
[1743367302088,5.07839937,602.8,600.35,0.333139]
[1743367302489,3.28811198,602.79,600.35,0.333139]
[1743367302790,4.76763751,602.79,600.35,0.333139]
[1743367302985,1.76867135,602.78,600.35,0.333139]
[1743367303185,1.52077882,602.78,600.35,0.333139]
[1743367304087,3.00030435,602.78,600.35,0.333139]
[1743367304284,3.28811198,602.77,600.35,0.333139]
[1743367304688,1.47952553,602.76,600.35,0.333139]
[1743367304985,4.76763751,602.77,600.35,0.333139]
[1743367305291,3.85062548,602.76,600.35,0.333139]
[1743367305491,7.13873746,602.75,600.35,0.333139]
[1743367305692,3.86081148,602.74,600.35,0.333139]
[1743367305884,1.48492749,602.74,600.35,0.333139]
[1743367306286,3.57724819,602.75,600.35,2.86982548]
[1743367306287,1.48492749,602.73,600.35,2.86982548]
[1743367306591,1.48492749,602.72,600.35,2.86982548]
[1743367306792,1.48492749,602.71,600.35,2.86982548]
[1743367306994,3.28811198,602.71,600.35,2.86982548]
[1743367307195,1.48492749,602.7,600.35,2.86982548]
[1743367307394,1.48492749,602.69,600.35,2.86982548]
[1743367307693,1.48492749,602.68,600.35,2.86982548]
[1743367307897,1.48492749,602.67,600.35,2.86982548]
[1743367308195,1.48492749,602.66,600.35,2.86982548]
[1743367308392,1.48492749,602.65,600.35,2.86982548]
[1743367308589,1.48492749,602.64,600.35,2.86982548]
[1743367308789,1.48492749,602.63,600.35,2.86982548]
[1743367308990,1.48492749,602.62,600.35,2.86982548]
[1743367309190,1.48492749,602.61,600.35,2.86982548]
[1743367309499,1.48492749,602.6,600.35,2.86982548]
[1743367309690,1.48492749,602.59,600.35,2.86982548]
[1743367309896,1.48492749,602.58,600.35,2.86982548]
[1743367310095,1.48492749,602.57,600.45,2.53668648]